bitfinex-derivatives/quotes_ETHF0:USTF0_20240817
["timestamp","ask_amount","ask_price","bid_price","bid_amount"]
[1723937727344,0.37862034,2608.8,2608.7,5.16922152]
[1723937727526,0.37862034,2608.8,2608.7,7.08579132]
[1723937727838,0.37862034,2608.8,2608.7,5.16922152]
[1723937729835,0.00362034,2608.8,2608.7,12.02236077]
[1723937730138,0.00362034,2608.8,2608.7,12.89505069]
[1723937730340,0.00362034,2608.8,2608.7,11.38852925]
[1723937730638,0.00362034,2608.8,2608.7,12.39193419]
[1723937730933,0.00362034,2608.8,2608.7,12.89505069]
[1723937731139,0.00362034,2608.8,2608.7,11.38852925]
[1723937731835,0.00362034,2608.8,2608.7,13.39292145]
[1723937732034,0.00362034,2608.8,2608.7,12.89338014]
[1723937732434,0.00362034,2608.8,2608.7,12.89331102]
[1723937733534,0.00362034,2608.8,2608.7,11.38846013]
[1723937733727,0.00362034,2608.8,2608.7,12.89339136]
[1723937733926,0.00362034,2608.8,2608.7,11.38846013]
[1723937734242,0.00362034,2608.8,2608.7,12.8933322]
[1723937734542,0.00362034,2608.8,2608.7,11.38846013]
[1723937734731,0.00362034,2608.8,2608.7,13.39285233]
[1723937734925,0.00362034,2608.8,2608.7,11.38846013]
[1723937736241,0.00362034,2608.8,2608.7,20.74182714]
[1723937736637,0.00362034,2608.8,2608.7,19.236802]
[1723937737038,0.00362034,2608.8,2608.7,19.2367167]
[1723937740040,0.00362034,2608.8,2608.7,19.23669331]
[1723937740346,0.7436,2609.4,2608.8,3.8328]
[1723937740541,0.7436,2609.4,2609.1,3.06402489]
[1723937741132,0.74749269,2609.4,2609.1,3.06402489]
[1723937741337,0.74749269,2609.4,2609.1,2.06104]
[1723937741543,0.74749269,2609.4,2609.1,1.103]
[1723937741738,0.74749269,2609.4,2609.1,3.06402489]
[1723937743045,0.74749269,2609.4,2609.1,6.27182489]
[1723937743242,0.74749269,2609.4,2609.1,5.26884]
[1723937743436,0.74749269,2609.4,2609.1,6.27182489]
[1723937744246,0.74749269,2609.4,2609.1,5.26884]
[1723937744645,1.103,2609.2,2609.1,3.2078]
[1723937744947,1.103,2609.2,2609.1,4.16585]
[1723937745454,1.103,2609.2,2609.1,3.2078]
[1723937747345,1.103,2609.2,2609.1,4.16585]
[1723937747745,1.85049269,2609.4,2609.1,4.16585]
[1723937748143,0.74749269,2609.4,2609.2,1.103]
[1723937748649,0.74749269,2609.4,2609.2,2.06101]
[1723937758561,0.74749269,2609.4,2609.2,1.103]
[1723937759068,0.74749269,2609.4,2609.1,4.16583]
[1723937759953,1.103,2609.2,2609.1,3.2078]
[1723937760154,1.103,2609.2,2609.0,0.00574955]
[1723937760352,0.3766,2609.1,2609.0,0.00574955]
[1723937760748,4.2094,2609.1,2609.0,0.00574955]
[1723937762060,4.5762,2609.1,2609.0,0.00574955]
[1723937763257,0.7434,2609.1,2609.0,0.00574955]
[1723937763449,0.7434,2609.1,2609.0,1.10874955]
[1723937764045,0.37319269,2609.4,2609.2,0.95798]
[1723937764260,0.3693,2609.3,2609.2,1.103]
[1723937764563,0.00389269,2609.4,2609.3,0.95797]
[1723937764756,0.00389269,2609.4,2609.3,1.67097]
[1723937767154,0.00389269,2609.4,2609.3,13.23813978]
[1723937767655,0.00389269,2609.4,2609.3,11.73356203]
[1723937767656,0.00022801,2609.4,2609.3,11.73356203]
[1723937768756,0.00022801,2609.4,2609.3,13.23683649]
[1723937768957,0.00022801,2609.4,2609.3,11.73356203]
[1723937769759,0.00022801,2609.4,2609.3,13.23748768]
[1723937770264,0.00022801,2609.4,2609.3,11.73356203]
[1723937770960,0.00022801,2609.4,2609.3,15.56556203]
[1723937771468,0.00022801,2609.4,2609.3,17.56995423]
[1723937771660,7.72932708,2610.2,2609.4,3.832]
[1723937771965,1.8699027,2610.0,2609.9,1.103]
[1723937772552,0.3651,2610.0,2609.9,1.103]
[1723937772760,0.3689084,2610.0,2609.9,1.10790542]
[1723937775050,0.3689084,2610.0,2609.9,2.06565542]
[1723937775252,0.0038084,2610.0,2609.9,6.27603874]
[1723937777269,0.0038084,2610.0,2609.9,5.27345542]
[1723937777659,0.0038084,2610.0,2609.9,6.27603874]
[1723937777860,0.0038084,2610.0,2609.9,18.03635427]
[1723937778168,0.0038084,2610.0,2609.9,13.20257095]
[1723937778365,0.0038084,2610.0,2609.9,14.20515427]
[1723937781167,0.0038084,2610.0,2609.9,13.20257095]
[1723937783671,0.0038084,2610.0,2609.9,11.14182095]
[1723937783869,0.0038084,2610.0,2609.9,7.93402095]
[1723937787868,0.0038084,2610.0,2609.9,9.03702095]
[1723937793578,3.8350084,2610.0,2609.9,0.00490542]
[1723937799482,3.8350084,2610.0,2609.9,1.10790542]
[1723937804379,4.9380084,2610.0,2609.9,0.00490542]
[1723937804582,12.4005311,2610.0,2609.9,0.00490542]
[1723937804876,13.1279311,2610.0,2609.9,0.00490542]
[1723937805491,12.1702111,2610.0,2609.9,0.00490542]
[1723937805984,7.1702111,2610.0,2609.9,0.00490542]
[1723937806992,6.0672111,2610.0,2609.9,0.00490542]
[1723937807187,4.5624084,2610.0,2609.9,1.10790542]
[1723937807991,0.7312084,2610.0,2609.9,1.10790542]
[1723937808390,2.2360111,2610.0,2609.9,1.10790542]
[1723937808779,0.7312084,2610.0,2609.9,1.10790542]
[1723937808980,2.2360111,2610.0,2609.9,1.10790542]
[1723937811590,2.2360111,2610.0,2609.9,2.11048874]
[1723937811791,2.2360111,2610.0,2609.9,1.10790542]
[1723937813294,2.23764379,2610.0,2609.9,2.11048874]
[1723937814198,1.51024379,2610.0,2609.9,6.89943874]
[1723937814392,0.0038084,2610.0,2609.9,16.85607848]
[1723937814787,0.0038084,2610.0,2609.9,13.02472457]
[1723937815279,0.0038084,2610.0,2609.9,24.67746606]
[1723937816497,0.00574955,2610.2,2610.1,0.95768]
[1723937816794,0.00574955,2610.2,2610.1,5.48068379]
[1723937817098,0.00574955,2610.2,2610.1,9.31188379]
[1723937817293,0.00574955,2610.2,2610.1,9.67164086]
[1723937817489,0.00974048,2610.2,2610.1,9.67164086]
[1723937818699,0.00974048,2610.2,2610.1,5.84044086]
[1723937820284,0.00974048,2610.2,2610.1,9.67164086]
[1723937821097,0.00974048,2610.2,2610.1,5.84054479]
[1723937821295,0.00974048,2610.2,2610.1,9.67174479]
[1723937822801,0.00974048,2610.2,2610.1,4.33621795]
[1723937823190,0.00974048,2610.2,2610.1,5.33892722]
[1723937823495,0.00974048,2610.2,2610.1,4.33621795]
[1723937824291,0.00974048,2610.2,2610.1,5.33885545]
[1723937824689,0.00974048,2610.2,2610.1,4.33621795]
[1723937825095,0.00974048,2610.2,2610.1,9.16999961]
[1723937825394,0.00974048,2610.2,2610.1,5.33879961]
[1723937825593,0.00974048,2610.2,2610.1,2.91811961]
[1723937825788,5.34737587,2610.2,2610.0,4.2103996]
[1723937825994,0.6898,2610.1,2610.0,2.1055996]
[1723937826187,1.0411,2610.1,2610.0,2.1055996]
[1723937827592,6.37873539,2610.1,2609.9,2.11050502]
[1723937827793,2.54753539,2610.1,2609.9,1.10790542]
[1723937828006,2.54753539,2610.1,2610.0,8.07492439]
[1723937828508,6.37873539,2610.1,2610.0,8.07492439]
[1723937829199,4.8723,2610.1,2610.0,9.17792439]
[1723937829390,1.51617587,2610.2,2610.0,10.13564439]
[1723937829592,1.51617587,2610.2,2610.1,1.103]
[1723937831205,1.51617587,2610.2,2610.1,2.06068]
[1723937831391,0.00974048,2610.2,2610.1,2.06068]
[1723937831591,0.00974048,2610.2,2610.0,1.0025996]
[1723937831795,1.51617587,2610.2,2610.1,1.103]
[1723937833602,0.00974048,2610.2,2610.1,1.103]
[1723937834990,1.51617587,2610.2,2610.1,1.103]
[1723937835197,0.00974048,2610.2,2610.1,1.103]
[1723937836703,0.00974048,2610.2,2610.1,2.06068]
[1723937836898,0.00974048,2610.2,2610.1,9.31175654]
[1723937838602,0.00974048,2610.2,2610.1,9.3116334]
[1723937838806,0.00974048,2610.2,2610.1,9.6605334]
[1723937839003,0.00974048,2610.2,2610.1,13.2336334]
[1723937842603,0.00974048,2610.2,2610.1,12.01743418]
[1723937842811,0.00974048,2610.2,2610.1,11.01510656]
[1723937843101,0.00974048,2610.2,2610.1,12.5194334]
[1723937843302,0.00974048,2610.2,2610.1,2.91775414]
[1723937843498,0.00974048,2610.2,2610.1,1.103]
[1723937846601,0.00974048,2610.2,2610.0,1.103]
[1723937846602,5.34737587,2610.2,2610.0,1.103]
[1723937846806,0.3731,2610.1,2610.0,1.103]
[1723937847013,0.7177,2610.1,2610.0,1.103]
[1723937847208,0.7177,2610.1,2610.0,9.19235124]
[1723937847599,0.7177,2610.1,2610.0,10.19467882]
[1723937848324,0.7177,2610.1,2610.0,12.11033111]
[1723937848612,0.00974048,2610.2,2610.1,0.95768]
[1723937848814,0.00974048,2610.2,2610.1,3.06300758]
[1723937849007,0.00974048,2610.2,2610.1,4.9784773]
[1723937849315,0.00974048,2610.2,2610.1,3.06300758]
[1723937850204,0.00974048,2610.2,2610.1,4.97849585]
[1723937850511,0.00974048,2610.2,2610.1,3.06300758]
[1723937850703,0.00974048,2610.2,2610.1,12.51950237]
[1723937851308,0.00974048,2610.2,2610.1,12.51933114]
[1723937852008,0.00974048,2610.2,2610.1,12.51925282]
[1723937852208,0.00974048,2610.2,2610.1,11.01509721]
[1723937852514,0.00974048,2610.2,2610.1,12.51965804]
[1723937852709,0.00974048,2610.2,2610.1,12.51962772]
[1723937852916,0.00974048,2610.2,2610.1,11.01509721]
[1723937853118,0.00057069,2610.2,2610.1,21.23581276]
[1723937853804,1.50643539,2610.8,2610.1,31.49540645]
[1723937854007,1.50643539,2610.9,2610.7,2.60684106]
[1723937854215,1.50643539,2611.0,2610.8,4.87555827]
[1723937854525,1.51218494,2611.1,2610.9,2.10553904]
[1723937854815,1.51646466,2611.1,2611.0,1.103]
[1723937855205,0.01002927,2611.1,2611.0,1.103]
[1723937856722,1.51420509,2611.1,2611.0,1.103]
[1723937857620,0.01002927,2611.1,2611.0,1.103]
[1723937859223,0.01002927,2611.1,2611.0,2.06035]
[1723937859425,0.01002927,2611.1,2611.0,5.88995]
[1723937859621,0.01002927,2611.1,2611.0,4.9326]
[1723937860714,0.01002927,2611.1,2611.0,5.88995]
[1723937861819,0.01002927,2611.1,2611.0,4.9326]
[1723937862922,0.01002927,2611.1,2611.0,5.88995]
[1723937865815,0.01002927,2611.1,2611.0,14.09034025]
[1723937866025,0.01002927,2611.1,2611.0,14.44574025]
[1723937866231,0.01002927,2611.1,2611.0,15.44827929]
[1723937866627,0.01002927,2611.1,2611.0,14.44574025]
[1723937866928,0.01002927,2611.1,2611.0,15.44827929]
[1723937867117,0.01002927,2611.1,2611.0,14.44574025]
[1723937870626,0.3451,2611.3,2611.2,0.95728]
[1723937870820,0.3451,2611.3,2611.2,5.26808]
[1723937871823,0.34945567,2611.3,2611.2,5.26808]
[1723937876130,0.34945567,2611.3,2611.2,4.16508]
[1723937876532,0.34945567,2611.3,2611.2,5.26808]
[1723937877532,0.34945567,2611.3,2611.2,2.06028]
[1723937878226,0.34945567,2611.3,2611.1,3.2078]
[1723937878529,0.3508,2611.2,2611.0,0.95735]
[1723937878927,0.3508,2611.2,2611.1,8.11203297]
[1723937880028,0.3508,2611.2,2610.9,7.87574636]
[1723937880233,0.3508,2611.2,2611.1,9.27126101]
[1723937880737,0.3508,2611.2,2611.1,1.103]
[1723937880936,0.3508,2611.2,2611.1,9.27126101]
[1723937882834,0.3508,2611.2,2611.1,12.47906101]
[1723937883727,0.3508,2611.2,2611.1,9.27126101]
[1723937884529,0.3508,2611.2,2611.1,10.22857101]
[1723937884734,0.3508,2611.2,2611.1,17.26597101]
[1723937886136,0.34945567,2611.3,2611.1,17.26597101]
[1723937886342,0.34945567,2611.3,2611.2,0.95728]
[1723937886741,0.34945567,2611.3,2611.2,9.00811375]
[1723937891343,0.34945567,2611.3,2611.2,9.31929154]
[1723937893948,0.34945567,2611.3,2611.2,9.00811375]
[1723937898049,0.34945567,2611.3,2611.2,10.01065279]
[1723937899353,0.34945567,2611.3,2611.2,9.00811375]
[1723937899559,0.34945567,2611.3,2611.2,10.15637279]
[1723937899753,0.34945567,2611.3,2611.2,9.15383375]
[1723937900156,0.34945567,2611.3,2611.2,8.05083375]
[1723937900157,4.17905567,2611.3,2611.2,8.05083375]
[1723937900360,8.89103149,2611.3,2611.1,1.103]
[1723937900564,3.8296,2611.2,2611.1,1.103]
[1723937902768,3.8296,2611.2,2611.1,2.10553904]
[1723937903162,3.8296,2611.2,2611.1,1.103]
[1723937903359,3.8296,2611.2,2611.1,2.10553904]
[1723937904070,1.85363149,2611.3,2611.1,2.10553904]
[1723937904263,0.34945567,2611.3,2611.2,1.103]
[1723937904466,0.34945567,2611.3,2611.2,2.10553904]
[1723937904664,1.85363149,2611.3,2611.2,1.103]
[1723937906769,1.85363149,2611.3,2611.2,2.10553904]
[1723937908376,1.85363149,2611.3,2611.2,3.06281904]
[1723937910758,1.85363149,2611.3,2611.2,4.02031291]
[1723937910963,1.85363149,2611.3,2611.2,2.10553904]
[1723937911669,0.34945567,2611.3,2611.2,2.10553904]
[1723937911964,1.85554702,2611.3,2611.2,2.10553904]
[1723937912168,0.34945567,2611.3,2611.2,2.10553904]
[1723937912869,0.34945567,2611.3,2611.2,1.103]
[1723937912870,2.35727855,2611.3,2611.2,1.103]
[1723937913076,0.34945567,2611.3,2611.2,1.103]
[1723937918582,0.34945567,2611.3,2611.2,2.10553904]
[1723937919275,0.34945567,2611.3,2611.2,1.103]
[1723937919476,0.34945567,2611.3,2611.2,2.10553904]
[1723937919880,0.34945567,2611.3,2611.2,1.103]
[1723937920381,0.34945567,2611.3,2611.2,2.10553904]
[1723937920781,0.34945567,2611.3,2611.2,1.103]
[1723937921789,0.34945567,2611.3,2611.2,2.10553904]
[1723937922179,0.34945567,2611.3,2611.2,1.103]
[1723937922581,0.34945567,2611.3,2611.2,2.10553904]
[1723937923373,0.34945567,2611.3,2611.2,1.103]
[1723937923684,4.17905567,2611.3,2611.2,1.103]
[1723937924080,4.17905567,2611.3,2611.2,2.10553904]
[1723937924289,4.17905567,2611.3,2611.2,1.103]
[1723937924482,6.18687855,2611.3,2611.2,1.103]
[1723937924988,4.17905567,2611.3,2611.2,1.103]
[1723937925182,6.18687855,2611.3,2611.2,1.103]
[1723937925389,4.17905567,2611.3,2611.2,1.103]
[1723937926985,6.18687855,2611.3,2611.2,1.103]
[1723937937800,4.17905567,2611.3,2611.1,4.3108]
[1723937937990,2.00824937,2611.2,2611.1,4.3108]
[1723937938291,2.00824937,2611.2,2611.1,1.103]
[1723937938495,5.83784937,2611.2,2611.1,1.103]
[1723937940495,11.94084937,2611.2,2611.0,1.00253904]
[1723937940686,4.9326,2611.1,2610.6,4.11066045]
[1723937940885,4.9326,2611.1,2610.6,2.10553904]
[1723937940886,5.21672544,2610.8,2610.6,2.10553904]
[1723937941086,2.00892544,2610.7,2610.6,1.103]
[1723937941292,2.35702544,2610.7,2610.6,1.103]
[1723937941488,6.18742544,2610.7,2610.6,1.103]
[1723937941897,6.18742544,2610.7,2610.6,2.10553904]
[1723937941898,1.50591106,2610.7,2610.6,2.10553904]
[1723937942093,1.50591106,2610.7,2610.6,1.7996]
[1723937942897,1.50591106,2610.7,2610.6,2.3741]
[1723937943393,1.50591106,2610.8,2610.6,1.7996]
[1723937943602,1.50591106,2610.8,2610.7,1.103]
[1723937944191,1.50591106,2610.9,2610.7,16.97764309]
[1723937944393,2.51121341,2611.2,2610.7,16.97764309]
[1723937944394,1.50591106,2611.0,2610.8,1.57698904]
[1723937944592,2.00892544,2611.2,2610.9,2.45443904]
[1723937944593,1.50591106,2611.1,2610.9,2.45443904]
[1723937944802,1.50591106,2611.1,2611.0,1.4696]
[1723937946102,1.50591106,2611.2,2611.0,1.4696]
[1723937946287,1.50591106,2611.2,2611.0,2.47213904]
[1723937946689,1.50591106,2611.2,2611.0,1.4696]
[1723937947196,0.3617,2611.1,2611.0,1.4696]
[1723937947393,1.86702086,2611.1,2611.0,1.4696]
[1723937947993,1.86702086,2611.1,2611.0,1.103]
[1723937948295,4.1913,2611.1,2610.9,1.103]
[1723937948495,1.8767441,2611.0,2610.9,1.103]
[1723937950903,0.3714,2611.0,2610.9,1.103]
[1723937951105,1.8767441,2611.0,2610.9,1.103]
[1723937952016,0.3714,2611.0,2610.9,2.10553904]
[1723937952211,1.8767441,2611.0,2610.9,1.103]
[1723937953013,0.3714,2611.0,2610.9,1.103]
[1723937953317,1.8767441,2611.0,2610.9,1.103]
[1723937953821,0.3714,2611.0,2610.9,1.103]
[1723937954415,1.8767441,2611.0,2610.9,1.103]
[1723937954615,1.8767441,2611.0,2610.8,2.10553904]
[1723937954814,1.8767441,2611.0,2610.8,1.103]
[1723937958621,1.8767441,2611.0,2610.8,2.10553904]
[1723937958821,1.8767441,2611.0,2610.8,1.103]
[1723937959212,1.8767441,2611.0,2610.7,1.00253904]
[1723937959213,1.8767441,2611.0,2610.9,1.103]
[1723937959721,1.5053441,2611.1,2610.9,5.31333904]
[1723937959918,1.5053441,2611.2,2611.0,1.103]
[1723937960118,1.50508993,2611.2,2611.1,1.468]
[1723937960412,2.01328111,2611.3,2611.1,9.97083258]
[1723937960413,1.5094456,2611.3,2611.1,9.97083258]
[1723937960614,1.5094456,2611.3,2611.2,3.2078]
[1723937960822,1.5094456,2611.3,2611.2,3.78216]
[1723937961020,0.00435567,2611.3,2611.2,3.78216]
[1723937961215,1.50939522,2611.3,2611.2,3.78216]
[1723937961621,0.00435567,2611.3,2611.2,3.2078]
[1723937961824,1.50939522,2611.3,2611.2,4.20909751]
[1723937962023,1.50936433,2611.3,2611.2,4.20909751]
[1723937962218,0.00435567,2611.3,2611.2,4.20909751]
[1723937963041,0.00435567,2611.3,2611.2,5.31209751]
[1723937963323,1.50942477,2611.3,2611.2,5.31207775]
[1723937963519,1.50942477,2611.3,2611.2,4.3108]
[1723937963716,1.50942477,2611.3,2611.2,5.31210801]
[1723937964020,1.50942477,2611.3,2611.2,5.3120736]
[1723937964227,1.50942477,2611.3,2611.2,4.3108]
[1723937964718,1.50942477,2611.3,2611.2,6.59062615]
[1723937964916,1.50942477,2611.3,2611.2,4.3108]
[1723937965113,1.50942477,2611.3,2611.2,5.31209517]
[1723937967524,1.50942477,2611.3,2611.2,4.3108]
[1723937967729,0.00435567,2611.3,2611.2,6.22555028]
[1723937968526,0.00435567,2611.3,2611.2,6.22556419]
[1723937968727,1.50942477,2611.3,2611.2,4.3108]
[1723937969820,0.00435567,2611.3,2611.2,4.3108]
[1723937970130,1.50942477,2611.3,2611.2,5.31194675]
[1723937970425,1.88282477,2611.3,2611.2,5.31194675]
[1723937971624,1.88282477,2611.3,2611.2,4.3108]
[1723937971625,0.37775567,2611.3,2611.2,4.3108]
[1723937972129,0.74575567,2611.3,2611.2,4.3108]
[1723937981524,0.74575567,2611.3,2611.2,1.103]
[1723937989836,2.25082477,2611.3,2611.2,1.103]
[1723937992135,2.25082477,2611.3,2611.2,2.10414675]
[1723937992336,0.00435567,2611.3,2611.2,2.10414675]
[1723937992539,1.5050691,2611.7,2611.6,0.57428]
[1723937992831,1.5050691,2611.7,2611.6,4.88508]
[1723937993038,0.7279,2611.9,2611.6,18.85164375]
[1723937993226,0.7279,2611.9,2611.7,3.41501473]
[1723937993227,1.103,2611.9,2611.7,3.41501473]
[1723937993428,1.103,2611.9,2611.6,13.53465814]
[1723937993429,1.5091071,2611.9,2611.6,13.53465814]
[1723937993625,1.8824691,2611.8,2611.7,1.103]
[1723937993834,0.3774,2611.8,2611.7,1.103]
[1723937994044,0.004038,2611.9,2611.7,10.24003876]
[1723937994346,0.004038,2611.9,2611.8,1.103]
[1723937994528,0.004038,2611.9,2611.8,1.10797373]
[1723937994731,0.004038,2611.9,2611.8,1.83317373]
[1723937995635,0.004038,2611.9,2611.8,2.83361043]
[1723937997140,0.004038,2611.9,2611.8,6.66241043]
[1723937997332,0.004038,2611.9,2611.8,5.66197373]
[1723937997843,0.004038,2611.9,2611.8,14.57377274]
[1723937998032,0.004038,2611.9,2611.8,15.14800274]
[1723937998540,0.004038,2611.9,2611.8,14.14756604]
[1723937999541,0.004038,2611.9,2611.8,13.57333604]
[1723938000630,0.004038,2611.9,2611.8,14.14756604]
[1723938000941,0.00574955,2612.0,2611.8,16.98805901]
[1723938001128,0.00574955,2612.0,2611.9,4.20619846]
[1723938001634,0.00574955,2612.0,2611.9,16.07869446]
[1723938001841,0.00892876,2612.0,2611.9,16.07869446]
[1723938004532,0.00892876,2612.0,2611.9,11.251496]
[1723938005430,0.00892876,2612.0,2611.9,12.354496]
[1723938007929,0.00892876,2612.0,2611.9,16.183296]
[1723938008343,0.00892876,2612.0,2611.9,16.873096]
[1723938008541,0.00892876,2612.0,2611.9,17.447306]
[1723938008741,0.00892876,2612.0,2611.9,17.804306]
[1723938010142,0.00892876,2612.0,2611.9,13.975506]
[1723938010349,4.088,2612.6,2611.9,17.230096]
[1723938010646,1.0542,2612.5,2612.2,3.2078]
[1723938011034,1.0542,2612.5,2612.3,7.9884179]
[1723938011439,1.05817026,2612.5,2612.3,7.9884179]
[1723938012337,1.05817026,2612.5,2612.4,1.103]
[1723938016949,0.00397026,2612.5,2612.4,13.33776225]
[1723938017139,0.00397026,2612.5,2612.4,14.06256225]
[1723938017842,0.00397026,2612.5,2612.4,13.69016225]
[1723938018342,0.00397026,2612.5,2612.4,9.86216225]
[1723938018650,0.00397026,2612.5,2612.4,13.69016225]
[1723938021647,0.7053,2612.8,2612.6,0.57405]
[1723938021948,0.7053,2612.8,2612.7,9.06594824]
[1723938022542,0.70923329,2612.8,2612.7,9.06594824]
[1723938033157,1.5050691,2613.4,2612.7,17.89314824]
[1723938033357,1.0437,2614.0,2613.3,4.8847]
[1723938033554,1.0437,2614.0,2613.9,1.103]
[1723938033959,4.8693,2614.0,2613.9,1.103]
[1723938034157,5.44713474,2614.0,2613.9,0.00293522]
[1723938034363,4.87338474,2614.0,2613.9,1.10593522]
[1723938034861,6.55013474,2614.0,2613.9,0.00293522]
[1723938039267,0.57385,2613.6,2613.4,1.10874955]
[1723938039461,0.7239,2613.5,2613.4,1.10874955]
[1723938039663,1.0949,2613.5,2613.4,1.10874955]
[1723938040265,1.0949,2613.5,2613.4,1.11327936]
[1723938045563,5.49516,2613.5,2613.4,1.11327936]
[1723938045769,5.49516,2613.5,2613.4,0.01027936]
[1723938046275,11.0243,2613.5,2612.8,8.5658]
[1723938046474,0.57392,2613.2,2613.0,1.103]
[1723938046668,0.57392,2613.2,2612.8,3.2078]
[1723938046979,0.3503,2613.1,2612.9,1.103]
[1723938047176,0.725,2613.0,2612.9,1.103]
[1723938047365,0.725,2613.0,2612.9,1.10732602]
[1723938047565,4.5522,2613.0,2612.9,1.10732602]
[1723938048174,4.5522,2613.0,2612.9,0.00432602]
[1723938048376,4.5522,2613.0,2612.9,1.10732602]
[1723938049471,0.725,2613.0,2612.9,1.10732602]
[1723938056781,3.9328,2613.0,2612.9,1.10732602]
[1723938060486,5.4309237,2613.0,2612.9,1.10732602]
[1723938062977,4.7059237,2613.0,2612.9,1.10732602]
[1723938063187,3.2078,2613.0,2612.9,1.10732602]
[1723938066084,1.8484237,2613.1,2612.9,1.10732602]
[1723938066292,1.8484237,2613.1,2613.0,1.103]
[1723938067790,1.50383622,2613.2,2613.0,1.103]
[1723938068288,2.07776622,2613.2,2613.0,1.103]
[1723938068590,1.50383622,2613.2,2613.0,1.103]
[1723938069181,0.57395,2613.1,2612.9,1.10732602]
[1723938069382,2.0720737,2613.1,2612.9,1.10732602]
[1723938069683,0.3785,2613.0,2612.9,1.10732602]
[1723938070082,0.3785,2613.0,2612.9,9.0414985]
[1723938071493,0.3785,2613.0,2612.9,1.10732602]
[1723938073489,0.95247,2613.0,2612.9,1.10732602]
[1723938073690,6.2777937,2613.0,2612.9,1.10732602]
[1723938073886,6.2777937,2613.0,2612.9,0.00432602]
[1723938080184,4.77967,2613.0,2612.9,0.00432602]
[1723938080381,6.28118415,2613.0,2612.9,0.00432602]
[1723938080585,4.77967,2613.0,2612.9,0.00432602]
[1723938082298,4.2057,2613.0,2612.9,0.00432602]
[1723938082507,6.21462544,2613.0,2612.9,0.00432602]
[1723938082902,6.78859544,2613.0,2612.9,0.00432602]
[1723938085692,4.77967,2613.0,2612.9,0.00432602]
[1723938086002,6.78430962,2613.0,2612.9,0.00432602]
[1723938086596,4.77967,2613.0,2612.9,0.00432602]
[1723938086995,0.3785,2613.0,2612.9,0.00432602]
[1723938088011,7.4135,2613.0,2612.9,0.00432602]
[1723938088199,3.5863,2613.0,2612.9,0.00432602]
[1723938088401,7.4135,2613.0,2612.9,0.00432602]
[1723938088605,6.09751341,2613.0,2612.9,0.00432602]
[1723938089690,6.71691341,2613.0,2612.9,0.00432602]
[1723938089895,6.09751341,2613.0,2612.9,0.00432602]
[1723938091501,5.71901341,2613.0,2612.9,0.00432602]
[1723938093111,3.2078,2613.0,2612.9,0.00432602]
[1723938095316,3.2078,2613.0,2612.9,0.36512602]
[1723938099114,3.2078,2613.0,2612.9,4.19232602]
[1723938099312,5.71792405,2613.0,2612.9,4.79588693]
[1723938100205,5.71792405,2613.0,2612.9,0.96868693]
[1723938100406,3.2078,2613.0,2612.9,4.19232602]
[1723938100715,2.51012405,2613.1,2612.9,4.7958905]
[1723938100907,0.35521252,2613.2,2613.0,1.103]
[1723938102618,2.51001212,2613.1,2613.0,1.103]
[1723938102810,0.35521252,2613.2,2613.0,1.103]
[1723938103211,2.50993853,2613.1,2613.0,1.103]
[1723938103512,2.5099195,2613.1,2613.0,1.103]
[1723938103913,0.35521252,2613.2,2613.0,1.103]
[1723938104511,2.50983626,2613.1,2613.0,1.103]
[1723938104816,0.35521252,2613.2,2613.0,1.103]
[1723938105117,0.92914252,2613.2,2613.0,1.103]
[1723938105911,0.35521252,2613.2,2613.0,1.103]
[1723938107013,2.50976877,2613.1,2613.0,1.103]
[1723938107312,0.35521252,2613.2,2613.0,1.103]
[1723938109216,2.50971235,2613.1,2613.0,1.103]
[1723938111121,2.50971235,2613.1,2613.0,1.4468]
[1723938113815,0.92933919,2613.2,2613.0,20.49345586]
[1723938114021,1.50921027,2614.0,2613.8,0.57377]
[1723938114216,1.50921027,2614.0,2613.1,7.4460374]
[1723938114217,3.2078,2615.0,2613.9,12.65288447]
[1723938114520,0.57357,2614.8,2614.7,1.103]
[1723938114721,0.57356,2614.9,2614.7,1.103]
[1723938115227,4.40137025,2614.9,2614.7,1.103]
[1723938115428,0.57358,2614.8,2614.5,1.10873844]
[1723938115623,0.94288,2614.8,2614.5,1.10873844]
[1723938116023,0.3693,2614.8,2614.5,1.10873844]
[1723938116926,0.94287,2614.8,2614.5,1.10873844]
[1723938117118,0.3693,2614.8,2614.5,1.10873844]
[1723938118425,0.94287,2614.8,2614.5,1.10873844]
[1723938120324,0.5736,2614.7,2614.5,0.00573844]
[1723938120729,0.3715,2614.6,2614.5,0.00573844]
[1723938121238,4.1963,2614.6,2614.5,0.00573844]
[1723938122019,4.76992,2614.6,2614.5,0.00573844]
[1723938122225,7.97772,2614.6,2614.5,0.00573844]
[1723938122930,4.76992,2614.6,2614.5,0.00573844]
[1723938123627,7.97772,2614.6,2614.5,0.00573844]
[1723938126637,7.97772,2614.6,2614.5,1.10873844]
[1723938126934,0.3715,2614.6,2614.5,1.10873844]
[1723938131935,0.94512,2614.6,2614.5,1.10873844]
[1723938133441,4.76992,2614.6,2614.5,0.00573844]
[1723938135643,13.5071,2614.6,2613.9,3.2078]
[1723938135834,0.57372,2614.2,2614.0,1.103]
[1723938136037,0.7154,2614.1,2614.0,1.103]
[1723938136628,0.7154,2614.1,2613.8,0.00573844]
[1723938136841,0.3492,2614.0,2613.8,0.00573844]
[1723938137042,0.3492,2614.0,2613.9,8.17932825]
[1723938137437,0.00573844,2614.3,2613.9,11.38712825]
[1723938137643,1.05573844,2614.3,2613.9,11.62412825]
[1723938137841,1.62941844,2614.3,2613.9,11.62412825]
[1723938138041,1.05573844,2614.3,2613.9,11.62412825]
[1723938138942,1.62942844,2614.3,2613.9,11.62412825]
[1723938139242,1.62942844,2614.3,2614.2,1.103]
[1723938140938,1.05573844,2614.3,2614.2,1.103]
[1723938143041,0.35373844,2614.3,2614.2,1.103]
[1723938143249,0.00573844,2614.3,2614.2,1.103]
[1723938146143,4.40421844,2614.3,2613.9,3.2078]
[1723938146345,0.3488,2614.2,2613.9,3.2078]
[1723938146540,0.6982,2614.2,2614.1,1.103]
[1723938149839,4.5238,2614.2,2613.8,0.00573844]
[1723938150039,0.6982,2614.2,2614.0,1.103]
[1723938150648,1.27191,2614.2,2614.0,1.103]
[1723938151047,1.27191,2614.2,2613.9,1.103]
[1723938151048,0.57377,2614.0,2613.9,1.103]
[1723938151244,0.57377,2613.9,2613.8,0.00573844]
[1723938151438,4.3108,2614.1,2613.8,0.00573844]